fUSD/lending_fUSD_20250502
["ID","MTS","AMOUNT","RATE_DAILY","PERIOD"]
[359594163,1746172246634,-500.0,0.00019999,2]
[359594164,1746172246644,-500.0,0.00019999,2]
[359594165,1746172246654,-500.0,0.00019999,2]
[359594166,1746172246665,-500.0,0.00019999,2]
[359594167,1746172246674,-500.0,0.00019999,2]
[359594168,1746172246684,-500.0,0.00019999,2]
[359594169,1746172246695,-500.0,0.00019999,2]
[359594170,1746172246705,-500.0,0.00019999,2]
[359594171,1746172246715,-500.0,0.00019999,2]
[359594172,1746172246725,-500.0,0.00019999,2]
[359594173,1746172246735,-500.0,0.00019999,2]
[359594174,1746172246744,-847.99,0.00019999,2]
[359594175,1746172246754,-847.99,0.00019999,2]
[359594176,1746172246763,-847.99,0.00019999,2]
[359594177,1746172246773,-847.99,0.00019999,2]
[359594178,1746172246783,-847.99,0.00019999,2]
[359594179,1746172246793,-847.99,0.00019999,2]
[359594180,1746172246802,-847.99,0.00019999,2]
[359594181,1746172246812,-847.99,0.00019999,2]
[359594182,1746172246822,-847.99,0.00019999,2]
[359594183,1746172246832,-847.99,0.00019999,2]
[359594184,1746172246846,-847.99,0.00019999,2]
[359594185,1746172246856,-847.99,0.00019999,2]
[359594186,1746172246865,-847.99,0.00019999,2]
[359594187,1746172246875,-847.99,0.00019999,2]
[359594188,1746172246884,-847.99,0.00019999,2]
[359594189,1746172246894,-847.99,0.00019999,2]
[359594190,1746172246904,-847.99,0.00019999,2]
[359594191,1746172246913,-847.99,0.00019999,2]
[359594192,1746172246922,-847.99,0.00019999,2]
[359594193,1746172246932,-848.19951746,0.00019999,2]
[359594194,1746172246942,-500.0,0.00019999,2]
[359594195,1746172246951,-500.0,0.00019999,2]
[359594196,1746172246961,-500.0,0.00019999,2]
[359594197,1746172246971,-500.0,0.00019999,2]
[359594198,1746172246981,-500.0,0.00019999,2]
[359594199,1746172246991,-1526.73,0.00019999,2]
[359594200,1746172247001,-511.83843119,0.00019999,2]
[359594201,1746172247010,-1526.73,0.00019999,2]
[359594202,1746172247020,-1526.73,0.00019999,2]
[359594203,1746172247029,-1526.73,0.00019999,2]
[359594204,1746172247038,-1526.73,0.00019999,2]
[359594205,1746172247048,-1528.71,0.00019999,2]
[359594206,1746172247057,-1528.71,0.00019999,2]
[359594207,1746172247066,-1528.71,0.00019999,2]
[359594208,1746172247076,-1528.71,0.00019999,2]
[359594209,1746172247086,-1528.71,0.00019999,2]
[359594210,1746172247095,-1528.71,0.00019999,2]
[359594211,1746172247104,-1528.71,0.00019999,2]
[359594212,1746172247114,-1528.71,0.00019999,2]
[359594213,1746172247123,-1528.71,0.00019999,2]
[359594214,1746172247133,-1528.71,0.00019999,2]
[359594215,1746172247142,-1528.71,0.00019999,2]
[359594216,1746172247152,-1528.71,0.00019999,2]
[359594217,1746172247161,-1528.71,0.00019999,2]
[359594218,1746172247171,-1528.71,0.00019999,2]
[359594219,1746172247181,-1528.71,0.00019999,2]
[359594220,1746172247190,-1528.71,0.00019999,2]
[359594221,1746172247199,-1528.71,0.00019999,2]
[359594222,1746172247209,-1528.71,0.00019999,2]
[359594223,1746172247218,-1528.77967404,0.00019999,2]
[359594224,1746172247228,-372.97704385,0.00019999,2]
[359594225,1746172247238,-132788.99348382,0.0002,2]
[359594226,1746172247757,-1806.45394379,0.0002,2]
[359594227,1746172247769,-47982.29158587,0.0002,2]
[359594228,1746172247781,-1421.91293233,0.0002,2]
[359594229,1746172247808,-3586.85908103,0.0002,2]
[359594230,1746172248380,-450.0,0.00019826,2]
[359594231,1746172248390,-450.0,0.00019827,2]
[359594232,1746172248400,-107.5722947,0.00019862,2]
[359594233,1746172249265,-812.43,0.00019826,2]
[359594234,1746172249274,-450.0,0.00019827,2]
[359594235,1746172249284,-450.0,0.00019827,2]
[359594236,1746172249293,-519.40660268,0.00019862,2]
[359594237,1746172249304,-707.675,0.00019862,2]
[359594238,1746172249543,-256.04030501,0.00019743,2]
[359594239,1746172249553,-3599.32065978,0.00019862,2]
[359594240,1746172249592,-3434.12887577,0.00019862,2]
[359594241,1746172249603,-1928.0,0.00019862,2]
[359594242,1746172249615,-3350.74196052,0.00019862,2]
[359594243,1746172249625,-13646.84539345,0.00019881,2]
[359594244,1746172249635,-373.35264603,0.000199,2]
[359594245,1746172254360,250.0,0.00017,2]
[359594246,1746172255436,300.0,0.00019,2]
[359594323,1746172766398,2485.68,0.00018818,2]
[359594324,1746172808146,162.32,0.00015055,2]
[359594325,1746172877454,487.44,0.0001691,2]
[359594326,1746172877856,487.44,0.00019174,2]
[359594327,1746172995732,150.86434581,0.00019283,20]
[359594328,1746173014133,200.0,0.00018809,2]
[359594329,1746173040640,250.0,0.00018809,7]
[359594330,1746173056458,2140.95975,0.0001931,2]
[359594331,1746173080696,1000.0,0.00018819,2]
[359594332,1746173091738,460.02,0.00018819,2]
[359594333,1746173184661,820.6937678,0.00019105,2]
[359594334,1746173220971,3150.556608,0.0003287,60]
[359594335,1746173264652,75124.75417597,0.00032877,60]
[359594336,1746173340990,171.23,0.00016712,2]
[359594337,1746173403115,2000.0,0.0002,4]
[359594341,1746173432094,-222.11804783,0.00019405,2]
[359594342,1746173432105,-250.0,0.00019431,2]
[359594343,1746173432117,-250.0,0.00019475,2]
[359594344,1746173432128,-1200.0,0.00019504,2]
[359594345,1746173432138,-297.88192817,0.00019504,2]
[359594346,1746173432149,-2.11807183,0.00019504,2]
[359594347,1746173432159,-5509.3057392,0.00019505,2]
[359594348,1746173432175,-9623.33761287,0.00019505,2]
[359594349,1746173432236,-316.28000052,0.00019505,2]
[359594350,1746173432247,-1815.3649273,0.00019505,2]
[359594351,1746173432259,-1920.72795475,0.00019505,2]
[359594355,1746173432459,1017.07559952,0.00018,2]
[359594358,1746173438060,-1331.4071871,0.00019505,2]
[359594359,1746173438353,-29133.11018913,0.00019505,2]
[359594360,1746173438367,-743.9899995,0.00019505,2]
[359594361,1746173438382,-317.07694989,0.00019505,2]
[359594362,1746173438396,-7307.86291489,0.00019505,2]
[359594363,1746173438408,-1207.0,0.00019506,2]
[359594364,1746173438420,-797.0,0.00019506,2]
[359594365,1746173438432,-739.3402875,0.00019626,2]
[359594366,1746173438443,-200.0,0.00019663,2]
[359594367,1746173438455,-739.34028751,0.00019684,2]
[359594368,1746173438467,-200.0,0.00019723,2]
[359594369,1746173438479,-333.929,0.00019725,2]
[359594370,1746173438491,-1364.68453939,0.00019725,2]
[359594371,1746173438503,-166.63880098,0.00019726,2]
[359594373,1746173438515,-500.0,0.00019726,2]
[359594376,1746173438527,-1764.7,0.00019726,2]
[359594378,1746173438539,-1364.68453934,0.00019744,2]
[359594380,1746173438551,-200.0,0.00019763,2]
[359594382,1746173438563,-1364.68453934,0.00019764,2]
[359594384,1746173438575,-1364.68453934,0.00019783,2]
[359594387,1746173438587,-452.82112196,0.00019785,2]
[359594390,1746173438598,-12500.0,0.00019786,2]
[359594393,1746173438611,-12500.0,0.00019794,2]
[359594395,1746173438623,-155.5769965,0.00019799,2]
[359594398,1746173438635,-1364.68453934,0.00019803,2]
[359594400,1746173438649,-12500.0,0.00019803,2]
[359594403,1746173438662,-12500.0,0.00019812,2]
[359594405,1746173438675,-12500.0,0.00019821,2]
[359594407,1746173438688,-1364.68453934,0.00019822,2]
[359594409,1746173438700,-199.14634754,0.00019824,2]
[359594412,1746173438712,-218.38202048,0.00019824,2]
[359594414,1746173438724,-450.0,0.00019824,2]
[359594416,1746173438736,-536.27,0.00019824,2]
[359594418,1746173438747,-752.74,0.00019824,2]
[359594421,1746173438759,-450.0,0.00019824,2]
[359594423,1746173438771,-659.82,0.00019824,2]
[359594425,1746173438782,-535.02,0.00019824,2]
[359594427,1746173438794,-450.0,0.00019824,2]
[359594430,1746173438806,-1112.17,0.00019824,2]
[359594432,1746173438817,-531.0,0.00019824,2]
[359594434,1746173438829,-450.0,0.00019824,2]
[359594436,1746173438841,-781.79,0.00019824,2]
[359594439,1746173438853,-632.55,0.00019824,2]
[359594441,1746173438865,-1502.87,0.00019824,2]
[359594443,1746173438877,-750.74,0.00019824,2]
[359594446,1746173438890,-1184.59,0.00019824,2]
[359594448,1746173438901,-450.0,0.00019824,2]
[359594450,1746173438914,-450.0,0.00019824,2]
[359594451,1746173438927,-450.0,0.00019824,2]
[359594452,1746173438940,-450.0,0.00019824,2]
[359594453,1746173438952,-1184.31,0.00019824,2]
[359594454,1746173438965,-594.7,0.00019824,2]
[359594455,1746173438977,-1283.8,0.00019824,2]
[359594456,1746173438989,-610.33,0.00019824,2]
[359594457,1746173439002,-904.893402,0.00019824,2]
[359594458,1746173439014,-13189.84,0.00019824,2]
[359594459,1746173439027,-1660.62,0.00019824,2]
[359594460,1746173439039,-450.0,0.00019824,2]
[359594461,1746173439051,-450.0,0.00019824,2]
[359594462,1746173439063,-450.0,0.00019825,2]
[359594463,1746173439076,-450.0,0.00019825,2]
[359594464,1746173439088,-450.0,0.00019825,2]
[359594465,1746173439100,-450.0,0.00019825,2]
[359594466,1746173439113,-450.0,0.00019825,2]
[359594467,1746173439125,-238.31960185,0.00019825,2]
[359594468,1746173439137,-450.0,0.00019825,2]
[359594469,1746173439149,-450.0,0.00019825,2]
[359594470,1746173439161,-453.16,0.00019825,2]
[359594471,1746173439172,-450.0,0.00019825,2]
[359594472,1746173439184,-450.0,0.00019825,2]
[359594473,1746173439197,-456.3,0.00019825,2]
[359594474,1746173439208,-450.0,0.00019825,2]
[359594475,1746173439220,-450.0,0.00019825,2]
[359594476,1746173439232,-450.0,0.00019825,2]
[359594477,1746173439244,-584.76,0.00019825,2]
[359594478,1746173439257,-586.21,0.00019825,2]
[359594479,1746173439269,-450.0,0.00019825,2]
[359594480,1746173439281,-726.68,0.00019825,2]
[359594481,1746173439292,-751.47,0.00019825,2]
[359594482,1746173439307,-450.0,0.00019825,2]
[359594483,1746173439318,-932.37,0.00019825,2]
[359594484,1746173439330,-450.0,0.00019825,2]
[359594485,1746173439343,-450.0,0.00019825,2]
[359594486,1746173439355,-450.0,0.00019825,2]
[359594487,1746173439366,-678.96,0.00019825,2]
[359594488,1746173439378,-450.0,0.00019825,2]
[359594489,1746173439390,-450.0,0.00019825,2]
[359594490,1746173439402,-450.0,0.00019825,2]
[359594491,1746173439414,-832.11,0.00019825,2]
[359594492,1746173439426,-450.0,0.00019825,2]
[359594493,1746173439438,-450.0,0.00019825,2]
[359594494,1746173439449,-450.0,0.00019825,2]
[359594495,1746173439461,-450.0,0.00019825,2]
[359594496,1746173439472,-795.88,0.00019825,2]
[359594497,1746173439484,-450.0,0.00019825,2]
[359594498,1746173439496,-450.0,0.00019825,2]
[359594499,1746173439507,-450.0,0.00019825,2]
[359594500,1746173439519,-462.84,0.00019825,2]
[359594501,1746173439531,-450.0,0.00019825,2]
[359594502,1746173439543,-450.0,0.00019825,2]
[359594503,1746173439555,-935.61,0.00019825,2]
[359594504,1746173439567,-450.0,0.00019825,2]
[359594505,1746173439579,-1671.25,0.00019825,2]
[359594506,1746173439590,-450.0,0.00019825,2]
[359594507,1746173439602,-450.0,0.00019825,2]
[359594508,1746173439613,-609.28,0.00019825,2]
[359594509,1746173439624,-630.62,0.00019825,2]
[359594510,1746173439636,-250.0,0.00019825,2]
[359594511,1746173439648,-450.0,0.00019825,2]
[359594512,1746173439659,-674.84,0.00019825,2]
[359594513,1746173439671,-829.12,0.00019825,2]
[359594514,1746173439683,-473.11,0.00019825,2]
[359594515,1746173439695,-450.0,0.00019825,2]
[359594516,1746173439706,-450.0,0.00019825,2]
[359594517,1746173439718,-450.0,0.00019825,2]
[359594518,1746173439729,-215.72966804,0.00019825,2]
[359594519,1746173439740,-597.73,0.00019825,2]
[359594520,1746173439751,-705.55,0.00019825,2]
[359594521,1746173439763,-450.0,0.00019825,2]
[359594522,1746173439774,-450.0,0.00019825,2]
[359594523,1746173439785,-451.6476794,0.00019825,2]
[359594524,1746173439796,-450.0,0.00019825,2]
[359594525,1746173439808,-939.69,0.00019825,2]
[359594526,1746173439819,-450.0,0.00019825,2]
[359594527,1746173439831,-450.0,0.00019825,2]
[359594528,1746173439842,-450.0,0.00019825,2]
[359594529,1746173439854,-450.0,0.00019825,2]
[359594530,1746173439865,-783.86,0.00019825,2]
[359594531,1746173439879,-450.0,0.00019825,2]
[359594532,1746173439890,-450.0,0.00019825,2]
[359594533,1746173439900,-729.35,0.00019825,2]
[359594534,1746173439910,-582.06,0.00019825,2]
[359594536,1746173439920,-937.41,0.00019825,2]
[359594538,1746173439929,-450.0,0.00019825,2]
[359594540,1746173439940,-455.34598231,0.00019825,2]
[359594541,1746173439950,-574.79,0.00019825,2]
[359594542,1746173439961,-450.0,0.00019825,2]
[359594543,1746173439970,-450.0,0.00019825,2]
[359594544,1746173439980,-594.15,0.00019825,2]
[359594545,1746173439990,-450.0,0.00019825,2]
[359594547,1746173440411,-666.99,0.00019825,2]
[359594548,1746173440439,-450.0,0.00019825,2]
[359594549,1746173440450,-450.0,0.00019825,2]
[359594550,1746173440459,-299.71590492,0.00019825,2]
[359594551,1746173440469,-752.22,0.00019825,2]
[359594552,1746173440478,-1246.37902,0.00019825,2]
[359594553,1746173440488,-715.0,0.00019825,2]
[359594554,1746173440497,-450.0,0.00019825,2]
[359594555,1746173440507,-450.0,0.00019825,2]
[359594556,1746173440516,-953.91,0.00019825,2]
[359594557,1746173440525,-450.0,0.00019825,2]
[359594558,1746173440535,-804.27,0.00019825,2]
[359594559,1746173440545,-450.0,0.00019825,2]
[359594560,1746173440554,-432.99008969,0.00019825,2]
[359594561,1746173440563,-747.12,0.00019825,2]
[359594562,1746173440573,-431.02241529,0.00019825,2]
[359594563,1746173440582,-450.0,0.00019825,2]
[359594564,1746173440591,-629.7,0.00019825,2]
[359594565,1746173440601,-488.95,0.00019825,2]
[359594566,1746173440610,-532.05,0.00019825,2]
[359594567,1746173440620,-498.75,0.00019825,2]
[359594568,1746173440630,-571.06,0.00019825,2]
[359594569,1746173440639,-1273.92,0.00019825,2]
[359594570,1746173440649,-1273.92,0.00019825,2]
[359594571,1746173440658,-450.0,0.00019825,2]
[359594572,1746173440668,-2363.66,0.00019825,2]
[359594573,1746173440678,-450.0,0.00019825,2]
[359594574,1746173440688,-450.0,0.00019825,2]
[359594575,1746173440697,-450.0,0.00019825,2]
[359594576,1746173440707,-532.35,0.00019825,2]
[359594577,1746173440717,-450.0,0.00019825,2]
[359594578,1746173440726,-450.0,0.00019825,2]
[359594579,1746173440736,-450.0,0.00019825,2]
[359594580,1746173440745,-473.86,0.00019825,2]
[359594581,1746173440755,-450.0,0.00019825,2]
[359594582,1746173440764,-450.0,0.00019825,2]
[359594583,1746173440774,-759.9,0.00019825,2]
[359594584,1746173440783,-450.0,0.00019825,2]
[359594585,1746173440793,-469.0,0.00019825,2]
[359594586,1746173440803,-450.0,0.00019825,2]
[359594587,1746173440812,-450.0,0.00019825,2]
[359594588,1746173440822,-450.0,0.00019825,2]
[359594589,1746173440831,-2525.28,0.00019825,2]
[359594590,1746173440840,-450.0,0.00019825,2]
[359594591,1746173440849,-450.0,0.00019825,2]
[359594592,1746173440859,-450.0,0.00019825,2]
[359594593,1746173440868,-528.00209753,0.00019825,2]
[359594594,1746173440877,-450.0,0.00019825,2]
[359594595,1746173440886,-450.0,0.00019825,2]
[359594596,1746173440896,-450.0,0.00019825,2]
[359594597,1746173440906,-669.97,0.00019825,2]
[359594598,1746173440915,-450.0,0.00019825,2]
[359594599,1746173440925,-450.0,0.00019825,2]
[359594600,1746173440934,-450.0,0.00019825,2]
[359594601,1746173440943,-319.18882795,0.00019825,2]
[359594602,1746173440952,-1358.04,0.00019825,2]
[359594603,1746173440962,-450.0,0.00019825,2]
[359594604,1746173440971,-450.0,0.00019825,2]
[359594605,1746173440981,-264.13956628,0.00019825,2]
[359594606,1746173440990,-371.77581821,0.00019825,2]
[359594607,1746173440999,-450.0,0.00019825,2]
[359594608,1746173441009,-717.52,0.00019825,2]
[359594609,1746173441018,-450.0,0.00019825,2]
[359594610,1746173441028,-450.0,0.00019825,2]
[359594611,1746173441037,-571.42,0.00019825,2]
[359594612,1746173441047,-450.0,0.00019825,2]
[359594613,1746173441056,-1244.56,0.00019825,2]
[359594614,1746173441065,-450.0,0.00019825,2]
[359594615,1746173441075,-450.0,0.00019825,2]
[359594616,1746173441085,-450.0,0.00019825,2]
[359594617,1746173441094,-466.59881845,0.00019825,2]
[359594618,1746173441104,-730.47,0.00019825,2]
[359594619,1746173441114,-897.5,0.00019825,2]
[359594620,1746173441124,-450.0,0.00019825,2]
[359594621,1746173441134,-688.46,0.00019825,2]
[359594622,1746173441143,-450.0,0.00019825,2]
[359594623,1746173441153,-450.0,0.00019825,2]
[359594624,1746173441162,-450.0,0.00019825,2]
[359594625,1746173441171,-1236.88,0.00019825,2]
[359594626,1746173441181,-450.0,0.00019825,2]
[359594627,1746173441191,-450.0,0.00019825,2]
[359594628,1746173441200,-956.49,0.00019825,2]
[359594629,1746173441209,-461.38,0.00019825,2]
[359594630,1746173441219,-450.0,0.00019825,2]
[359594631,1746173441228,-450.0,0.00019825,2]
[359594632,1746173441238,-450.0,0.00019825,2]
[359594633,1746173441247,-220.87125325,0.00019825,2]
[359594634,1746173441256,-1099.59,0.00019825,2]
[359594635,1746173441266,-450.0,0.00019825,2]
[359594636,1746173441275,-479.40318502,0.00019825,2]
[359594637,1746173441285,-450.0,0.00019825,2]
[359594638,1746173441295,-484.91,0.00019825,2]
[359594639,1746173441305,-450.0,0.00019825,2]
[359594640,1746173441314,-757.02,0.00019825,2]
[359594641,1746173441324,-716.26,0.00019825,2]
[359594642,1746173441333,-512.28569738,0.00019825,2]
[359594643,1746173441343,-601.08,0.00019825,2]
[359594644,1746173441352,-450.0,0.00019825,2]
[359594645,1746173441361,-1694.78,0.00019825,2]
[359594646,1746173441371,-450.0,0.00019825,2]
[359594647,1746173441381,-1250.08,0.00019825,2]
[359594648,1746173441390,-450.0,0.00019825,2]
[359594649,1746173441401,-778.58,0.00019825,2]
[359594650,1746173441410,-450.0,0.00019825,2]
[359594651,1746173441420,-552.37909692,0.00019825,2]
[359594652,1746173441429,-450.0,0.00019825,2]
[359594653,1746173441438,-450.0,0.00019825,2]
[359594654,1746173441447,-450.0,0.00019825,2]
[359594655,1746173441456,-450.0,0.00019825,2]
[359594656,1746173441466,-450.0,0.00019825,2]
[359594657,1746173441475,-450.0,0.00019825,2]
[359594658,1746173441485,-1006.2,0.00019825,2]
[359594659,1746173441494,-210.81557993,0.00019825,2]
[359594660,1746173441503,-1100.21,0.00019825,2]
[359594661,1746173441513,-450.0,0.00019825,2]
[359594662,1746173441522,-450.0,0.00019825,2]
[359594663,1746173441532,-759.66,0.00019825,2]
[359594664,1746173441541,-785.77,0.00019825,2]
[359594665,1746173441550,-500.0,0.00019825,2]
[359594666,1746173441560,-627.10754496,0.00019825,2]
[359594667,1746173441569,-450.0,0.00019825,2]
[359594668,1746173441578,-450.0,0.00019825,2]
[359594669,1746173441589,-450.0,0.00019825,2]
[359594670,1746173441599,-450.0,0.00019825,2]
[359594671,1746173441609,-450.0,0.00019825,2]
[359594672,1746173441618,-624.47,0.00019825,2]
[359594673,1746173441628,-479.68894796,0.00019825,2]
[359594674,1746173441637,-450.0,0.00019825,2]
[359594675,1746173441647,-450.0,0.00019825,2]
[359594676,1746173441656,-450.0,0.00019825,2]
[359594677,1746173441666,-282.64065768,0.00019825,2]
[359594678,1746173441675,-513.95,0.00019825,2]
[359594679,1746173441685,-450.0,0.00019825,2]
[359594680,1746173441694,-851.17,0.00019825,2]
[359594681,1746173441704,-450.0,0.00019825,2]
[359594682,1746173441713,-939.79,0.00019825,2]
[359594683,1746173441722,-450.0,0.00019825,2]
[359594684,1746173441731,-431.22056157,0.00019825,2]
[359594685,1746173441741,-461.42,0.00019825,2]
[359594686,1746173441750,-450.0,0.00019825,2]
[359594687,1746173441759,-940.13,0.00019825,2]
[359594688,1746173441768,-971.67,0.00019825,2]
[359594689,1746173441777,-450.0,0.00019825,2]
[359594690,1746173441787,-450.0,0.00019825,2]
[359594691,1746173441796,-1138.25,0.00019825,2]
[359594692,1746173441806,-1014.7,0.00019825,2]
[359594693,1746173441816,-349.52933173,0.00019825,2]
[359594694,1746173441826,-518.91,0.00019825,2]
[359594695,1746173441835,-450.0,0.00019825,2]
[359594696,1746173441844,-450.0,0.00019825,2]
[359594697,1746173441853,-450.0,0.00019825,2]
[359594698,1746173441863,-531.29,0.00019825,2]
[359594699,1746173441872,-481.00010173,0.00019825,2]
[359594700,1746173441881,-450.0,0.00019825,2]
[359594701,1746173441891,-614.98,0.00019825,2]
[359594702,1746173441900,-450.0,0.00019825,2]
[359594703,1746173441909,-379.60030711,0.00019825,2]
[359594704,1746173441919,-450.0,0.00019825,2]
[359594705,1746173441928,-616.99,0.00019825,2]
[359594706,1746173441939,-811.15,0.00019825,2]
[359594707,1746173441948,-9206.72,0.00019825,2]
[359594708,1746173441958,-450.0,0.00019825,2]
[359594709,1746173441967,-771.3,0.00019825,2]
[359594710,1746173441977,-777.57,0.00019825,2]
[359594711,1746173441987,-450.0,0.00019825,2]
[359594712,1746173441997,-450.0,0.00019825,2]
[359594713,1746173442006,-450.0,0.00019825,2]
[359594714,1746173442017,-450.0,0.00019825,2]
[359594715,1746173442026,-485.41,0.00019825,2]
[359594716,1746173442036,-7026.23,0.00019825,2]
[359594717,1746173442047,-450.86,0.00019825,2]
[359594718,1746173442056,-271.1320085,0.00019825,2]
[359594719,1746173442066,-450.0,0.00019825,2]
[359594720,1746173442076,-973.52,0.00019825,2]
[359594721,1746173442086,-1071.52,0.00019825,2]
[359594722,1746173442095,-2882.09,0.00019825,2]
[359594723,1746173442106,-450.0,0.00019825,2]
[359594724,1746173442115,-450.0,0.00019825,2]
[359594725,1746173442124,-669.99,0.00019825,2]
[359594726,1746173442133,-750.76,0.00019825,2]
[359594727,1746173442142,-9373.25,0.00019825,2]
[359594728,1746173442151,-450.0,0.00019825,2]
[359594729,1746173442161,-790.31,0.00019825,2]
[359594730,1746173442170,-935.35,0.00019825,2]
[359594731,1746173442179,-248.4799724,0.00019825,2]
[359594732,1746173442189,-450.0,0.00019825,2]
[359594733,1746173442198,-568.82,0.00019825,2]
[359594734,1746173442208,-685.54,0.00019825,2]
[359594735,1746173442220,-34231.47,0.00019825,2]
[359594736,1746173442230,-489.09,0.00019825,2]
[359594737,1746173442241,-654.76,0.00019825,2]
[359594738,1746173442254,-450.0,0.00019825,2]
[359594739,1746173442266,-620.14,0.00019825,2]
[359594740,1746173442276,-770.72,0.00019825,2]
[359594741,1746173442286,-1000.0,0.00019825,2]
[359594742,1746173442295,-450.0,0.00019825,2]
[359594743,1746173442306,-2769.45,0.00019825,2]
[359594744,1746173442317,-739.2,0.00019825,2]
[359594745,1746173442327,-450.0,0.00019825,2]
[359594746,1746173442336,-450.0,0.00019825,2]
[359594747,1746173442347,-450.0,0.00019825,2]
[359594748,1746173442356,-479.67427224,0.00019825,2]
[359594749,1746173442366,-450.0,0.00019825,2]
[359594750,1746173442376,-747.04,0.00019825,2]
[359594751,1746173442387,-23698.2,0.00019825,2]
[359594752,1746173442396,-1171.22,0.00019825,2]
[359594753,1746173442406,-2550.8,0.00019825,2]
[359594754,1746173442415,-450.0,0.00019825,2]
[359594755,1746173442424,-450.0,0.00019825,2]
[359594756,1746173442433,-801.19,0.00019825,2]
[359594757,1746173442443,-829.12,0.00019825,2]
[359594758,1746173442452,-450.0,0.00019825,2]
[359594759,1746173442462,-450.0,0.00019825,2]
[359594760,1746173442471,-450.0,0.00019825,2]
[359594761,1746173442481,-2042.08,0.00019825,2]
[359594762,1746173442490,-450.0,0.00019825,2]
[359594763,1746173442500,-450.0,0.00019825,2]
[359594764,1746173442510,-2783.88,0.00019825,2]
[359594765,1746173442519,-450.0,0.00019825,2]
[359594766,1746173442528,-457.18,0.00019825,2]
[359594767,1746173442539,-475.11317135,0.00019825,2]
[359594768,1746173442548,-450.0,0.00019825,2]
[359594769,1746173442558,-450.0,0.00019825,2]
[359594770,1746173442568,-481.24255364,0.00019825,2]
[359594771,1746173442578,-1514.14,0.00019825,2]
[359594772,1746173442588,-237.32068191,0.00019825,2]
[359594773,1746173442598,-450.0,0.00019825,2]
[359594774,1746173442608,-317.64203809,0.00019825,2]
[359594775,1746173442618,-4720.65,0.00019825,2]
[359594776,1746173442628,-450.0,0.00019825,2]
[359594777,1746173442638,-450.0,0.00019825,2]
[359594778,1746173442648,-557.84,0.00019825,2]
[359594779,1746173442658,-450.0,0.00019825,2]
[359594780,1746173442668,-450.0,0.00019825,2]
[359594781,1746173442678,-692.33,0.00019825,2]
[359594782,1746173442688,-1531.59,0.00019825,2]
[359594783,1746173442697,-450.0,0.00019825,2]
[359594784,1746173442707,-459.57,0.00019825,2]
[359594785,1746173442716,-1065.05,0.00019825,2]
[359594786,1746173442726,-450.0,0.00019825,2]
[359594787,1746173442736,-777.51,0.00019825,2]
[359594788,1746173442746,-649.85,0.00019825,2]
[359594789,1746173442755,-741.24,0.00019825,2]
[359594790,1746173442764,-450.0,0.00019825,2]
[359594791,1746173442773,-892.34,0.00019825,2]
[359594792,1746173442783,-478.04118226,0.00019825,2]
[359594793,1746173442792,-450.0,0.00019825,2]
[359594794,1746173442801,-479.62046989,0.00019825,2]
[359594795,1746173442811,-1012.1,0.00019825,2]